fUSD/lending_fUSD_20251204
["ID","MTS","AMOUNT","RATE_DAILY","PERIOD"]
[396225070,1764838239788,-500.0,0.00015791,2]
[396225071,1764838239797,-500.0,0.00015791,2]
[396225072,1764838239807,-500.0,0.00015791,2]
[396225073,1764838239816,-500.0,0.00015791,2]
[396225074,1764838239826,-500.0,0.00015791,2]
[396225075,1764838239836,-500.0,0.00015791,2]
[396225076,1764838239846,-500.0,0.00015791,2]
[396225077,1764838239855,-500.0,0.00015791,2]
[396225078,1764838239865,-509.51129037,0.00015791,2]
[396225079,1764838239878,-500.0,0.00015791,2]
[396225080,1764838239888,-500.0,0.00015791,2]
[396225082,1764838239898,-500.0,0.00015791,2]
[396225084,1764838239908,-151.0,0.00015791,2]
[396225086,1764838239917,-151.0,0.00015791,2]
[396225088,1764838239927,-151.0,0.00015791,2]
[396225090,1764838239936,-151.0,0.00015791,2]
[396225092,1764838239945,-151.0,0.00015791,2]
[396225093,1764838239954,-151.0,0.00015791,2]
[396225095,1764838239963,-151.0,0.00015791,2]
[396225097,1764838239973,-151.0,0.00015791,2]
[396225098,1764838239983,-151.0,0.00015791,2]
[396225099,1764838239997,-151.0,0.00015791,2]
[396225100,1764838240010,-200.0,0.00015791,2]
[396225101,1764838240025,-151.0,0.00015791,2]
[396225102,1764838240039,-1229.22194654,0.00015799,5]
[396225103,1764838240051,-611.75031463,0.00015799,2]
[396225104,1764838240064,-1389.831,0.00015799,2]
[396225105,1764838240077,-198.96894634,0.00015799,2]
[396225106,1764838240090,-500.0,0.00015799,2]
[396225107,1764838240104,-500.0,0.00015799,2]
[396225108,1764838240118,-506.71814393,0.00015799,2]
[396225109,1764838240129,-500.0,0.00015799,2]
[396225110,1764838240141,-521.60476849,0.00015799,2]
[396225111,1764838240152,-500.0,0.00015799,2]
[396225112,1764838240166,-500.0,0.00015799,2]
[396225113,1764838240180,-506.84102606,0.00015799,2]
[396225114,1764838240192,-468.9517815,0.00015799,2]
[396225116,1764838240206,-253.77,0.00015801,3]
[396225117,1764838240220,-250.0,0.00015819,2]
[396225119,1764838240237,-500.0,0.00015833,2]
[396225122,1764838240250,-11879.04860843,0.00015834,2]
[396225123,1764838240263,-1288.79,0.00015836,2]
[396225124,1764838240275,-736.57,0.00015855,2]
[396225125,1764838240291,-162.76159357,0.00015873,2]
[396225126,1764838240304,-500.0,0.00015873,2]
[396225127,1764838240318,-300.93445897,0.00015873,2]
[396225128,1764838240332,-501.4245699,0.00015873,2]
[396225129,1764838240344,-429.24017763,0.00015873,2]
[396225130,1764838240358,-500.0,0.00015873,2]
[396225131,1764838240372,-500.0,0.00015873,2]
[396225132,1764838240389,-6195.4495529,0.00015888,2]
[396225133,1764838240404,-500.0,0.00015899,2]
[396225134,1764838240418,-500.0,0.00015899,2]
[396225135,1764838240430,-500.0,0.00015899,2]
[396225136,1764838240441,-501.89145064,0.00015899,2]
[396225137,1764838240453,-162.3037051,0.00015933,2]
[396225138,1764838240464,-312.6,0.00015935,2]
[396225139,1764838240479,-11879.04860843,0.00015967,2]
[396225140,1764838240493,-290.1,0.00016001,2]
[396225141,1764838240503,-200.0,0.00016011,2]
[396225142,1764838240514,-6195.4495529,0.00016033,2]
[396225143,1764838240525,-166.66,0.00016064,2]
[396225144,1764838240539,-11879.04860843,0.00016101,2]
[396225145,1764838240553,-1288.79,0.0001611,2]
[396225146,1764838240566,-311.1,0.00016146,2]
[396225147,1764838240577,-599.60298507,0.00016146,2]
[396225148,1764838240592,-1000.0,0.00016146,2]
[396225149,1764838240603,-151.0,0.00016146,2]
[396225150,1764838240616,-500.0,0.00016146,2]
[396225151,1764838240629,-574.12855637,0.00016146,2]
[396225152,1764838240646,-1000.0,0.00016146,2]
[396225153,1764838240659,-500.0,0.00016146,2]
[396225154,1764838240671,-1000.0,0.00016146,2]
[396225155,1764838240684,-500.0,0.00016146,2]
[396225156,1764838240696,-1000.0,0.00016146,2]
[396225157,1764838240711,-500.0,0.00016146,2]
[396225158,1764838240722,-1000.0,0.00016146,2]
[396225159,1764838240735,-500.0,0.00016146,2]
[396225160,1764838240747,-1000.0,0.00016146,2]
[396225161,1764838240760,-500.0,0.00016146,2]
[396225162,1764838240771,-1000.0,0.00016146,2]
[396225163,1764838240783,-500.0,0.00016146,2]
[396225164,1764838240796,-1000.0,0.00016146,2]
[396225165,1764838240808,-1000.0,0.00016146,2]
[396225166,1764838240819,-500.0,0.00016146,2]
[396225167,1764838240831,-1000.0,0.00016146,2]
[396225168,1764838240844,-151.0,0.00016146,2]
[396225169,1764838240856,-500.0,0.00016146,2]
[396225170,1764838240868,-1000.0,0.00016146,2]
[396225171,1764838240880,-500.0,0.00016146,2]
[396225172,1764838240891,-500.0,0.00016146,2]
[396225173,1764838240905,-2000.0,0.00016146,2]
[396225174,1764838240918,-2000.0,0.00016146,2]
[396225175,1764838240930,-335.66906055,0.00016146,2]
[396225176,1764838240943,-500.0,0.00016146,2]
[396225177,1764838240955,-2000.0,0.00016146,2]
[396225178,1764838240973,-151.0,0.00016146,2]
[396225179,1764838240984,-500.0,0.00016146,2]
[396225180,1764838240996,-2000.0,0.00016146,2]
[396225181,1764838241008,-500.0,0.00016146,2]
[396225182,1764838241020,-2000.0,0.00016146,2]
[396225183,1764838241031,-602.00215734,0.00016146,2]
[396225184,1764838241043,-2000.0,0.00016146,2]
[396225185,1764838241055,-2000.0,0.00016146,2]
[396225186,1764838241067,-2000.0,0.00016146,2]
[396225187,1764838241081,-1978.90968169,0.00016146,2]
[396225188,1764838241093,-500.0,0.00016146,2]
[396225189,1764838241104,-300.0,0.00016146,2]
[396225190,1764838241116,-500.0,0.00016146,2]
[396225191,1764838241128,-500.0,0.00016146,2]
[396225192,1764838241139,-500.0,0.00016146,2]
[396225193,1764838241155,-628.35238982,0.00016146,2]
[396225194,1764838241170,-500.0,0.00016146,2]
[396225195,1764838241181,-151.0,0.00016146,2]
[396225196,1764838241192,-309.90051887,0.00016146,2]
[396225197,1764838241204,-2350.0,0.00016146,2]
[396225198,1764838241218,-1273.27178046,0.00016146,2]
[396225199,1764838241229,-277.35679052,0.00016146,2]
[396225200,1764838241240,-611.46471332,0.00016168,2]
[396225201,1764838241251,-6195.4495529,0.00016177,2]
[396225202,1764838241262,-508.13327839,0.00016181,2]
[396225203,1764838241274,-500.0,0.00016181,2]
[396225204,1764838241285,-500.0,0.00016181,2]
[396225205,1764838241296,-11491.82953619,0.00016231,2]
[396225206,1764838241307,-11879.04860843,0.00016234,2]
[396225207,1764838241319,-6195.4495529,0.00016322,2]
[396225208,1764838241331,-150.34,0.00016327,2]
[396225209,1764838241342,-1003.5506884,0.00016327,2]
[396225210,1764838241354,-11879.04860843,0.00016367,2]
[396225211,1764838241365,-166.66,0.00016376,2]
[396225212,1764838241376,-1288.79,0.00016384,2]
[396225213,1764838241386,-2739.0,0.00016393,2]
[396225214,1764838241399,-2739.0,0.00016402,2]
[396225215,1764838241410,-500.0,0.00016421,2]
[396225216,1764838241421,-1434.99960041,0.00016438,2]
[396225217,1764838241432,-1434.99960041,0.00016438,2]
[396225218,1764838241443,-1434.99960041,0.00016438,2]
[396225219,1764838241454,-1434.99960041,0.00016438,2]
[396225220,1764838241469,-1434.99960041,0.00016438,2]
[396225221,1764838241480,-1434.99960041,0.00016438,2]
[396225222,1764838241493,-1434.99960041,0.00016438,2]
[396225223,1764838241504,-1434.99960041,0.00016438,2]
[396225224,1764838241516,-1434.99960041,0.00016438,2]
[396225225,1764838241528,-1434.99960041,0.00016438,2]
[396225226,1764838241539,-1434.99960041,0.00016438,2]
[396225227,1764838241551,-1434.99960041,0.00016438,2]
[396225228,1764838241561,-1434.99960041,0.00016438,2]
[396225229,1764838241572,-1434.99960041,0.00016438,2]
[396225230,1764838241583,-1434.99960041,0.00016438,2]
[396225231,1764838241594,-1434.99960041,0.00016438,2]
[396225232,1764838241605,-1434.99960041,0.00016438,2]
[396225233,1764838241616,-1434.99960041,0.00016438,2]
[396225234,1764838241628,-1434.99960041,0.00016438,2]
[396225235,1764838241639,-1434.99960041,0.00016438,2]
[396225236,1764838241651,-1434.99960041,0.00016438,2]
[396225237,1764838241665,-1434.99960041,0.00016438,2]
[396225238,1764838241680,-1434.99960041,0.00016438,2]
[396225239,1764838241693,-1434.99960041,0.00016438,2]
[396225240,1764838241707,-1434.99960041,0.00016438,2]
[396225241,1764838241720,-1434.99960041,0.00016438,2]
[396225242,1764838241732,-1434.99960041,0.00016438,2]
[396225243,1764838241743,-1434.99960041,0.00016438,2]
[396225244,1764838241754,-1434.99960041,0.00016438,2]
[396225245,1764838241764,-1434.99960041,0.00016438,2]
[396225246,1764838241773,-1434.99960041,0.00016438,2]
[396225247,1764838241786,-1434.99960041,0.00016438,2]
[396225248,1764838241797,-1434.99960041,0.00016438,2]
[396225249,1764838241806,-1434.99960041,0.00016438,2]
[396225250,1764838241818,-1434.99960041,0.00016438,2]
[396225251,1764838241828,-1434.99960041,0.00016438,2]
[396225252,1764838241838,-1434.99960041,0.00016438,2]
[396225253,1764838242120,-1434.99960041,0.00016438,2]
[396225254,1764838242132,-1434.99960041,0.00016438,2]
[396225255,1764838242141,-1434.99960041,0.00016438,2]
[396225256,1764838242158,-1434.99960041,0.00016438,2]
[396225257,1764838242173,-1434.99960041,0.00016438,2]
[396225258,1764838242184,-1434.99960041,0.00016438,2]
[396225259,1764838242195,-1434.99960041,0.00016438,2]
[396225261,1764838242205,-1434.99960041,0.00016438,2]
[396225263,1764838242215,-1434.99960041,0.00016438,2]
[396225266,1764838242224,-1434.99960041,0.00016438,2]
[396225267,1764838242234,-1434.99960041,0.00016438,2]
[396225268,1764838242244,-1434.99960041,0.00016438,2]
[396225269,1764838242253,-1434.99960041,0.00016438,2]
[396225270,1764838242263,-1434.99960041,0.00016438,2]
[396225271,1764838242273,-1434.99960041,0.00016438,2]
[396225274,1764838242282,-1434.99960041,0.00016438,2]
[396225277,1764838242292,-1434.99960041,0.00016438,2]
[396225279,1764838242302,-1434.99960041,0.00016438,2]
[396225281,1764838242311,-1434.99960041,0.00016438,2]
[396225283,1764838242320,-1434.99960041,0.00016438,2]
[396225284,1764838242329,-1434.99960041,0.00016438,2]
[396225285,1764838242340,-1434.99960041,0.00016438,2]
[396225286,1764838242349,-1434.99960041,0.00016438,2]
[396225287,1764838242359,-1434.99960041,0.00016438,2]
[396225288,1764838242368,-1434.99960041,0.00016438,2]
[396225289,1764838242379,-800.55945524,0.00016438,2]
[396225290,1764838242392,-6195.4495529,0.00016466,2]
[396225291,1764838242401,-11879.04860843,0.000165,2]
[396225292,1764838242411,-6195.4495529,0.00016611,2]
[396225293,1764838242420,-11879.04860843,0.00016634,2]
[396225294,1764838242429,-1288.79,0.00016658,2]
[396225295,1764838242439,-1000.0,0.00016663,2]
[396225297,1764838242449,-151.0,0.00016694,2]
[396225298,1764838242458,-595.37131296,0.00016694,2]
[396225299,1764838242468,-152.97594253,0.00016694,2]
[396225300,1764838242477,-151.0,0.00016694,2]
[396225301,1764838242487,-2350.0,0.00016694,2]
[396225302,1764838242497,-2739.0,0.00016723,2]
[396225303,1764838242507,-420.0,0.00016726,2]
[396225304,1764838242517,-1000.0,0.0001674,2]
[396225305,1764838242526,-243.80132099,0.0001676,2]
[396225306,1764838242535,-11879.04860843,0.00016767,2]
[396225307,1764838242545,-2739.0,0.00016802,2]
[396225308,1764838242554,-1680.0,0.0001681,2]
[396225309,1764838242563,-562.71132894,0.00016834,2]
[396225310,1764838242574,-780.257,0.00016876,2]
[396225311,1764838242585,-1000.0,0.00016876,2]
[396225312,1764838242594,-1000.0,0.00016876,2]
[396225313,1764838242604,-1402.80529206,0.00016898,2]
[396225314,1764838242616,-181.41208312,0.00016898,2]
[396225315,1764838242626,-10000.0,0.000169,2]
[396225316,1764838242635,-210.94522326,0.000169,2]
[396225317,1764838242645,-2619.84735268,0.000169,2]
[396225318,1764838242657,-616.4929053,0.000169,2]
[396225319,1764838242666,-202.19795805,0.000169,2]
[396225320,1764838242676,-11879.04860843,0.000169,2]
[396225321,1764838242685,-218.12979786,0.000169,2]
[396225322,1764838242695,-6521.0,0.000169,2]
[396225323,1764838242705,-370.30396361,0.00016915,2]
[396225324,1764838242717,-1288.79,0.00016932,2]
[396225325,1764838242726,-2739.0,0.00016935,2]
[396225326,1764838242735,-2739.0,0.00016947,2]
[396225327,1764838242745,-1000.0,0.0001697,2]
[396225328,1764838242757,-598.94895177,0.00016973,2]
[396225329,1764838242767,-500.0,0.00016973,2]
[396225330,1764838242776,-518.5,0.00016986,2]
[396225331,1764838242789,-155.57891234,0.00016986,2]
[396225332,1764838242799,-156.79860579,0.00016986,2]
[396225333,1764838242807,-153.94576401,0.00016986,2]
[396225334,1764838242816,-159.05390551,0.00016986,2]
[396225335,1764838242824,-11615.0,0.00016988,2]
[396225336,1764838242833,-150.0,0.0001699,2]
[396225337,1764838242842,-500.0,0.0001699,2]
[396225338,1764838242851,-500.0,0.0001699,2]
[396225339,1764838242861,-150.0,0.0001699,2]
[396225340,1764838242871,-500.0,0.0001699,2]
[396225341,1764838242881,-500.0,0.0001699,2]
[396225342,1764838242897,-202.19752299,0.0001699,2]
[396225343,1764838242906,-295.49167691,0.0001699,2]
[396225344,1764838242917,-500.0,0.0001699,2]
[396225345,1764838242926,-150.0,0.0001699,2]
[396225346,1764838242935,-203.89538956,0.0001699,2]
[396225347,1764838242945,-500.0,0.0001699,2]
[396225348,1764838242955,-150.0,0.0001699,2]
[396225349,1764838242964,-150.0,0.0001699,2]
[396225350,1764838242974,-500.0,0.0001699,2]
[396225351,1764838242985,-500.0,0.0001699,2]
[396225353,1764838242995,-150.0,0.0001699,2]
[396225355,1764838243004,-152.33281575,0.0001699,2]
[396225357,1764838243013,-150.0,0.0001699,2]
[396225359,1764838243023,-500.0,0.0001699,2]
[396225361,1764838243032,-500.0,0.0001699,2]
[396225363,1764838243042,-150.0,0.0001699,2]
[396225366,1764838243051,-150.0,0.0001699,2]
[396225367,1764838243061,-282.96061831,0.0001699,2]
[396225368,1764838243071,-150.0,0.0001699,2]
[396225369,1764838243085,-150.0,0.0001699,2]
[396225370,1764838243095,-500.0,0.00016995,2]
[396225371,1764838243104,-500.0,0.00016997,2]
[396225372,1764838243114,-3417.7201531,0.00016998,2]
[396225373,1764838243124,-345799.9876482,0.00016998,2]
[396225374,1764838243134,-152.846296,0.00016998,2]
[396225375,1764838243143,-3091.917246,0.00016998,2]
[396225376,1764838243153,-2084.4212203,0.00016998,2]
[396225377,1764838243163,-152.857964,0.00016998,2]
[396225378,1764838243173,-39124.6379022,0.00016998,2]
[396225379,1764838243183,-761.023688,0.00016998,2]
[396225380,1764838243193,-761.023688,0.00016998,2]
[396225382,1764838243202,-761.023688,0.00016998,2]
[396225383,1764838243213,-761.023688,0.00016998,2]
[396225384,1764838243223,-3751.00742922,0.00016999,2]
[396225385,1764838243233,-510.4847934,0.00016999,2]
[396225386,1764838243243,-500.0,0.00016999,2]
[396225387,1764838243252,-500.0,0.00016999,2]
[396225388,1764838243262,-500.0,0.00016999,2]
[396225389,1764838243272,-410.37691776,0.00016999,2]
[396225390,1764838243282,-300.0,0.00016999,2]
[396225391,1764838243292,-173.63300387,0.00016999,2]
[396225392,1764838243302,-1337136.21150744,0.00017,2]
[396225393,1764838243314,-1151371.63443768,0.00017,2]
[396225394,1764838243331,-8903.56890921,0.00017,2]
[396225395,1764838243537,-150.0,0.0001699,2]
[396225396,1764838243546,-184.51313929,0.0001699,2]
[396225397,1764838243578,-315.48686071,0.0001699,2]
[396225398,1764838243587,-32520.16599351,0.00017,2]
[396225399,1764838243602,-716.73120004,0.00017,2]
[396225400,1764838245541,-1871.49552,0.00016755,2]
[396225407,1764838466640,2276.79,0.00025,120]
[396225408,1764838835249,-422.2289,0.00014716,2]
[396225409,1764838835274,-130.45280559,0.00014716,2]
[396225418,1764839431508,-300.0,0.00015167,2]
[396225420,1764839431518,-121.49439763,0.00015799,2]
[396225446,1764839437764,-378.50560237,0.00015799,2]
[396225447,1764839437774,-500.0,0.00015799,2]
[396225448,1764839437785,-500.0,0.00015799,2]
[396225449,1764839437795,-1291.86707491,0.00015809,2]
[396225450,1764839437867,-2967.50292509,0.00015809,2]
[396225451,1764839437876,-300.0,0.00015841,2]
[396225452,1764839437886,-260.14831955,0.00015841,2]
[396225455,1764839439642,-939.85168045,0.00015841,2]
[396225456,1764839439652,-4536.17,0.00015842,2]
[396225457,1764839439664,-426.29,0.00015871,2]
[396225458,1764839439675,-500.67806613,0.00015873,2]
[396225459,1764839439686,-300.0,0.00016146,2]
[396225460,1764839439697,-311.1,0.00016146,2]
[396225461,1764839439709,-2350.0,0.00016146,2]
[396225462,1764839439720,-277.35679052,0.00016146,2]
[396225463,1764839439732,-1836.83336823,0.00016146,2]
[396225464,1764839439743,-152.97594253,0.00016146,2]
[396225465,1764839439755,-300.0,0.00016188,2]
[396225466,1764839439767,-562.05,0.00016264,2]
[396225467,1764839439779,-232.08,0.00016358,2]
[396225468,1764839439790,-250.08,0.00016381,2]
[396225469,1764839439802,-800.55945524,0.00016438,2]
[396225470,1764839439814,-258.91565155,0.00016438,2]
[396225471,1764839439828,-5726.47382539,0.00016438,2]
[396225472,1764839439842,-1269.9727187,0.00016438,2]
[396225473,1764839439885,-1486.42780436,0.00016438,2]
[396225474,1764839439898,-1006.0,0.000166,2]
[396225475,1764839439910,-300.0,0.00016683,2]
[396225476,1764839439922,-250.0,0.00016683,2]
[396225477,1764839439934,-2350.0,0.00016694,2]
[396225478,1764839439946,-1000.0,0.000167,2]
[396225479,1764839439958,-410.37691776,0.00016766,2]
[396225480,1764839439969,-128197.7823,0.00016799,2]
[396225481,1764839439981,-4911.29924807,0.000168,2]
[396225482,1764839439993,-162.3037051,0.000168,2]
[396225483,1764839440004,-562.71132894,0.0001687,2]
[396225484,1764839440016,-1371.0,0.00016882,2]
[396225485,1764839440027,-307.446999,0.0001689,2]
[396225486,1764839440039,-574.12855637,0.0001689,2]
[396225487,1764839440051,-151.0,0.0001689,2]
[396225488,1764839440066,-500.0,0.0001689,2]
[396225489,1764839440078,-500.0,0.0001689,2]
[396225491,1764839440089,-1000.0,0.0001689,2]
[396225492,1764839440102,-500.0,0.0001689,2]
[396225493,1764839440113,-1000.0,0.0001689,2]
[396225494,1764839440125,-500.0,0.0001689,2]
[396225495,1764839440137,-1000.0,0.0001689,2]
[396225496,1764839440149,-500.0,0.0001689,2]
[396225498,1764839440161,-1000.0,0.0001689,2]
[396225499,1764839440172,-1000.0,0.0001689,2]
[396225500,1764839440184,-500.0,0.0001689,2]
[396225501,1764839440196,-1000.0,0.0001689,2]
[396225502,1764839440208,-500.0,0.0001689,2]
[396225503,1764839440219,-1000.0,0.0001689,2]
[396225504,1764839440231,-500.0,0.0001689,2]
[396225505,1764839440243,-1000.0,0.0001689,2]
[396225506,1764839440255,-500.0,0.0001689,2]
[396225507,1764839440266,-1000.0,0.0001689,2]
[396225508,1764839440277,-500.0,0.0001689,2]
[396225509,1764839440289,-500.0,0.0001689,2]
[396225510,1764839440300,-1000.0,0.0001689,2]
[396225511,1764839440313,-1000.0,0.0001689,2]
[396225512,1764839440324,-250.0,0.0001689,2]
[396225513,1764839440336,-250.0,0.0001689,2]
[396225514,1764839440346,-250.0,0.0001689,2]
[396225515,1764839440359,-250.0,0.0001689,2]
[396225516,1764839440371,-250.0,0.0001689,2]
[396225517,1764839440383,-250.0,0.0001689,2]
[396225518,1764839440394,-250.0,0.0001689,2]
[396225519,1764839440405,-151.0,0.0001689,2]
[396225520,1764839440417,-151.0,0.0001689,2]
[396225521,1764839440428,-250.0,0.0001689,2]
[396225522,1764839440439,-151.0,0.0001689,2]
[396225523,1764839440451,-250.0,0.0001689,2]
[396225524,1764839440463,-151.0,0.0001689,2]
[396225525,1764839440475,-250.0,0.0001689,2]
[396225526,1764839440486,-250.0,0.0001689,2]
[396225527,1764839440499,-151.0,0.0001689,2]
[396225528,1764839440511,-151.0,0.0001689,2]
[396225529,1764839440523,-151.0,0.0001689,2]
[396225530,1764839440535,-151.0,0.0001689,2]
[396225531,1764839440548,-573.36733798,0.0001689,2]
[396225532,1764839440560,-500.0,0.0001689,2]
[396225533,1764839440572,-500.0,0.0001689,2]
[396225534,1764839440584,-500.0,0.0001689,2]
[396225535,1764839440594,-500.0,0.0001689,2]
[396225536,1764839440604,-2000.0,0.0001689,2]
[396225537,1764839440615,-500.0,0.0001689,2]
[396225538,1764839440624,-2000.0,0.0001689,2]
[396225539,1764839440903,-500.0,0.0001689,2]
[396225540,1764839440932,-2000.0,0.0001689,2]
[396225541,1764839440945,-500.0,0.0001689,2]
[396225542,1764839440956,-503.8835565,0.0001689,2]
[396225543,1764839440966,-305.76134801,0.0001689,2]
[396225544,1764839440975,-500.0,0.0001689,2]
[396225545,1764839440984,-500.0,0.0001689,2]
[396225546,1764839440994,-500.0,0.0001689,2]
[396225547,1764839441003,-513.64377831,0.0001689,2]
[396225548,1764839441013,-151.0,0.0001689,2]
[396225549,1764839441024,-1111.865,0.0001689,2]
[396225550,1764839441033,-1127.69,0.0001689,2]
[396225551,1764839441042,-1000.0,0.00016898,2]
[396225552,1764839441052,-3751.00742922,0.00016898,2]
[396225553,1764839441062,-509.18007663,0.00016899,2]
[396225554,1764839441072,-507.69829592,0.00016899,2]
[396225555,1764839441082,-500.0,0.00016899,2]
[396225556,1764839441091,-500.0,0.00016899,2]
[396225557,1764839441102,-500.0,0.00016899,2]
[396225558,1764839441112,-500.0,0.00016899,2]
[396225559,1764839441121,-507.17450848,0.00016899,2]
[396225560,1764839441131,-500.0,0.00016899,2]
[396225561,1764839441142,-506.24410093,0.00016899,2]
[396225562,1764839441151,-500.0,0.00016899,2]
[396225563,1764839441161,-508.04937592,0.00016899,2]
[396225564,1764839441170,-2832.34443816,0.00016899,2]
[396225565,1764839441179,-1402.80529206,0.000169,2]
[396225566,1764839441189,-210.94522326,0.000169,2]
[396225567,1764839441198,-1000.0,0.000169,2]
[396225568,1764839441207,-1371.0,0.00016924,2]
[396225569,1764839441217,-1000.0,0.0001697,2]
[396225570,1764839441226,-1000.0,0.0001697,2]
[396225571,1764839441235,-598.94895177,0.00016973,2]
[396225572,1764839441244,-500.0,0.00016973,2]
[396225573,1764839441254,-518.5,0.00016986,2]
[396225574,1764839441263,-1065.0,0.00016986,2]
[396225575,1764839441272,-150.0,0.0001699,2]
[396225576,1764839441281,-500.0,0.0001699,2]
[396225577,1764839441291,-150.0,0.0001699,2]
[396225578,1764839441300,-150.0,0.0001699,2]
[396225579,1764839441309,-282.96061831,0.0001699,2]
[396225580,1764839441319,-150.0,0.0001699,2]
[396225581,1764839441328,-150.0,0.0001699,2]
[396225582,1764839441337,-150.86420125,0.0001699,2]
[396225583,1764839441347,-150.0,0.0001699,2]
[396225584,1764839441356,-500.0,0.0001699,2]
[396225585,1764839441366,-500.0,0.0001699,2]
[396225586,1764839441375,-150.0,0.0001699,2]
[396225587,1764839441384,-500.0,0.0001699,2]
[396225588,1764839441393,-150.0,0.0001699,2]
[396225589,1764839441403,-500.0,0.0001699,2]
[396225590,1764839441413,-500.0,0.0001699,2]
[396225591,1764839441422,-150.0,0.0001699,2]
[396225592,1764839441431,-202.19752299,0.0001699,2]
[396225593,1764839441441,-150.0,0.0001699,2]
[396225594,1764839441450,-500.0,0.0001699,2]
[396225595,1764839441459,-150.0,0.0001699,2]
[396225596,1764839441468,-207.9515902,0.0001699,2]
[396225597,1764839441478,-500.0,0.0001699,2]
[396225598,1764839441487,-150.0,0.0001699,2]
[396225599,1764839441496,-199.73901061,0.0001699,2]
[396225600,1764839441505,-150.0,0.0001699,2]
[396225601,1764839441515,-500.0,0.0001699,2]
[396225602,1764839441523,-500.0,0.0001699,2]
[396225603,1764839441533,-150.0,0.0001699,2]
[396225604,1764839441542,-152.33281575,0.0001699,2]
[396225605,1764839441551,-150.0,0.0001699,2]
[396225606,1764839441560,-500.0,0.00016999,2]
[396225607,1764839441569,-500.0,0.00016999,2]
[396225608,1764839441578,-500.0,0.00016999,2]
[396225609,1764839441588,-500.0,0.00016999,2]
[396225610,1764839441597,-367.11961321,0.00016999,2]
[396225611,1764839441606,-932.7547121,0.00016999,2]
[396225612,1764839441615,-74140.5427907,0.00016999,2]
[396225613,1764839441624,-305.96646881,0.00016999,2]
[396225614,1764839441633,-300.0,0.00016999,2]
[396225615,1764839441642,-843.8374857,0.00016999,2]
[396225616,1764839441651,-586.91483657,0.00016999,2]
[396225617,1764839441660,-586.91483657,0.00016999,2]
[396225618,1764839441670,-586.91483657,0.00016999,2]
[396225619,1764839441679,-586.91483657,0.00016999,2]
[396225620,1764839441689,-586.91483657,0.00016999,2]
[396225621,1764839441698,-586.91483657,0.00016999,2]
[396225622,1764839441709,-586.91483657,0.00016999,2]
[396225623,1764839441718,-586.91483657,0.00016999,2]
[396225624,1764839441727,-586.91483657,0.00016999,2]
[396225625,1764839441737,-586.91483657,0.00016999,2]
[396225626,1764839441746,-586.91483657,0.00016999,2]
[396225627,1764839441755,-586.91483657,0.00016999,2]
[396225628,1764839441764,-586.91483657,0.00016999,2]
[396225629,1764839441773,-586.91483657,0.00016999,2]
[396225630,1764839441782,-586.91483657,0.00016999,2]
[396225631,1764839441791,-586.91483657,0.00016999,2]
[396225632,1764839441800,-586.91483657,0.00016999,2]
[396225633,1764839441809,-586.91483657,0.00016999,2]
[396225634,1764839441818,-586.91483657,0.00016999,2]
[396225635,1764839441827,-586.91483657,0.00016999,2]
[396225636,1764839441836,-586.91483657,0.00016999,2]
[396225637,1764839441845,-586.91483657,0.00016999,2]
[396225638,1764839441854,-586.91483657,0.00016999,2]
[396225639,1764839441863,-586.91483657,0.00016999,2]
[396225640,1764839441872,-586.91483657,0.00016999,2]
[396225641,1764839441881,-586.91483657,0.00016999,2]
[396225642,1764839441890,-586.91483657,0.00016999,2]
[396225643,1764839441899,-586.91483657,0.00016999,2]
[396225644,1764839441908,-586.91483657,0.00016999,2]
[396225645,1764839441917,-586.91483657,0.00016999,2]
[396225646,1764839441926,-586.91483657,0.00016999,2]